bitfinex/quotes_SOLUSD_20241126
["timestamp","ask_amount","ask_price","bid_price","bid_amount"]
[1732579485607,0.4826342,234.8,234.79,54.00746858]
[1732579486306,0.4826342,234.8,234.79,59.15618745]
[1732579486781,0.4826342,234.8,234.79,54.00746858]
[1732579486977,0.4826342,234.8,234.78,20.0]
[1732579487184,0.4826342,234.8,234.79,20.0]
[1732579487403,0.4826342,234.8,234.79,54.00746858]
[1732579487607,0.4826342,234.8,234.79,54.25844858]
[1732579487782,0.4826342,234.8,234.79,54.89705704]
[1732579488802,0.4826342,234.8,234.79,20.0]
[1732579489690,0.4826342,234.8,234.79,58.26656858]
[1732579489890,0.4826342,234.8,234.79,59.03063604]
[1732579490782,0.4826342,234.8,234.79,82.93301004]
[1732579494399,0.4826342,234.8,234.79,95.73301004]
[1732579494600,0.4826342,234.8,234.79,95.09443258]
[1732579495797,0.4826342,234.8,234.79,82.29443258]
[1732579496006,0.4826342,234.8,234.79,82.93288226]
[1732579496509,34.00746858,234.94,234.88,20.0]
[1732579496911,10.0,234.9,234.88,20.0]
[1732579497411,37.41256858,234.94,234.8,0.63843188]
[1732579497412,10.0,234.89,234.86,20.0]
[1732579497711,10.0,234.88,234.86,20.0]
[1732579497891,10.0,234.87,234.86,20.0]
[1732579498091,10.0,234.89,234.86,20.0]
[1732579498616,10.0,234.84,234.79,38.90498261]
[1732579498791,10.0,234.84,234.8,0.12549]
[1732579499114,10.0,234.83,234.79,38.90498261]
[1732579499314,3.4058,234.89,234.63,15.1658]
[1732579499315,10.0,234.81,234.75,34.00746858]
[1732579499615,10.0,234.8,234.77,34.00746858]
[1732579500004,10.0,234.78,234.77,34.00746858]
[1732579500193,10.0,234.83,234.75,38.26726858]
[1732579500395,10.0,234.8,234.76,0.63872661]
[1732579500614,10.0,234.76,234.72,25.17745486]
[1732579500816,20.91715486,234.82,234.74,20.91715486]
[1732579500817,20.0,234.82,234.74,20.91715486]
[1732579501130,40.91715486,234.84,234.77,0.12549]
[1732579501293,19.5,234.84,234.77,0.12549]
[1732579501493,9.5,234.84,234.78,20.91715486]
[1732579501695,10.0,234.83,234.78,20.91715486]
[1732579502093,9.5,234.78,234.77,0.63866581]
[1732579502290,3.4066,234.84,234.72,20.91715486]
[1732579502291,19.0,234.76,234.72,20.91715486]
[1732579502513,9.5,234.74,234.69,0.6388736]
[1732579502720,9.5,234.68,234.59,4.2627]
[1732579502923,0.64041474,234.79,234.59,4.2627]
[1732579502924,9.5,234.63,234.59,4.2627]
[1732579503128,9.5,234.58,234.57,17.049644]
[1732579503425,9.5,234.58,234.28,21.93256207]
[1732579503426,19.0,234.55,234.49,20.91715486]
[1732579503590,9.5,234.55,234.49,20.91715486]
[1732579503795,19.0,234.55,234.49,20.91715486]
[1732579503995,9.5,234.55,234.5,4.38979]
[1732579504196,9.5,234.54,234.47,20.91715486]
[1732579504392,9.5,234.47,234.43,20.91715486]
[1732579504613,5.14938432,234.42,234.37,21.55673951]
[1732579504814,17.96809868,234.46,234.37,20.91715486]
[1732579505021,10.64041474,234.54,234.35,9.55436726]
[1732579505022,3.44591286,234.44,234.35,34.73852212]
[1732579505224,20.91715486,234.48,234.39,20.91715486]
[1732579505525,20.91715486,234.5,234.42,20.91715486]
[1732579505728,20.91715486,234.46,234.36,20.91715486]
[1732579506018,20.91715486,234.4,234.35,9.55436726]
[1732579506199,2.92784188,234.38,234.35,9.55436726]
[1732579506396,20.91715486,234.36,234.35,9.55436726]
[1732579506607,20.91715486,234.36,234.24,20.91715486]
[1732579506828,20.91715486,234.31,234.22,20.91715486]
[1732579507429,20.91715486,234.33,234.24,20.91715486]
[1732579507618,20.91715486,234.4,234.31,20.91715486]
[1732579507928,20.91715486,234.42,234.35,20.91715486]
[1732579508143,20.91715486,234.36,234.28,20.91715486]
[1732579508310,4.05321474,234.41,234.25,0.63985477]
[1732579508311,0.64041474,234.35,234.25,34.14428282]
[1732579508511,10.0,234.37,234.21,0.4826342]
[1732579508719,10.0,234.38,234.21,0.4826342]
[1732579508720,10.0,234.35,234.21,0.4826342]
[1732579508928,0.64041474,234.34,234.21,0.4826342]
[1732579509116,23.776884,234.34,234.21,0.4826342]
[1732579509436,23.776884,234.32,234.21,0.4826342]
[1732579509723,34.14428282,234.28,234.21,0.4826342]
[1732579510427,3.4148,234.27,234.21,0.4826342]
[1732579510631,34.14428282,234.24,234.21,0.4826342]
[1732579510931,34.14428282,234.22,234.21,0.4826342]
[1732579511238,34.14428282,234.24,234.21,0.4826342]
[1732579511407,34.14428282,234.22,234.21,0.4826342]
[1732579511929,57.92116682,234.22,234.21,0.4826342]
[1732579512143,34.14428282,234.22,234.21,0.4826342]
[1732579512309,37.55978282,234.22,234.21,0.4826342]
[1732579512519,34.14428282,234.22,234.21,0.4826342]
[1732579512719,50.29539756,234.26,234.21,0.4826342]
[1732579512918,34.14428282,234.24,234.21,0.4826342]
[1732579513120,34.14428282,234.22,234.21,0.4826342]
[1732579513433,57.92116682,234.22,234.21,0.4826342]
[1732579513739,58.56158156,234.22,234.21,0.4826342]
[1732579514326,57.92116682,234.22,234.21,0.4826342]
[1732579514535,37.55978282,234.22,234.21,0.4826342]
[1732579514726,61.33666682,234.22,234.21,0.4826342]
[1732579515033,34.14428282,234.24,234.21,0.4826342]
[1732579515230,49.65498282,234.26,234.21,0.4826342]
[1732579515437,34.14428282,234.28,234.21,0.4826342]
[1732579515641,0.64041474,234.27,234.21,0.4826342]
[1732579515844,34.14428282,234.22,234.21,0.4826342]
[1732579516046,0.12549,234.21,234.03,0.64051257]
[1732579516336,0.12549,234.21,233.98,0.4826342]
[1732579516337,34.14428282,234.09,234.01,34.14428282]
[1732579516931,34.14428282,234.07,233.99,34.14428282]
[1732579517118,34.14428282,234.07,233.98,4.7563342]
[1732579517328,34.14428282,234.11,234.03,34.14428282]
[1732579517728,34.14428282,234.09,234.01,34.14428282]
[1732579517925,34.14428282,234.07,233.99,34.14428282]
[1732579518858,34.14428282,234.03,233.98,0.4826342]
[1732579519346,34.14428282,234.05,233.98,0.4826342]
[1732579520320,34.14428282,234.01,233.98,0.4826342]
[1732579520826,37.56298282,234.01,233.98,0.4826342]
[1732579521031,34.14428282,233.99,233.98,0.4826342]
[1732579521637,34.78469756,233.99,233.98,0.4826342]
[1732579521822,58.56158156,233.99,233.98,0.4826342]
[1732579522239,15.5107,233.99,233.98,0.4826342]
[1732579522549,18.9296,233.99,233.98,0.4826342]
[1732579522729,43.34689874,233.99,233.98,0.4826342]
[1732579524041,18.9296,233.99,233.98,0.4826342]
[1732579524224,39.92799874,233.99,233.98,0.4826342]
[1732579524617,50.05348874,233.99,233.98,0.4826342]
[1732579524826,39.92799874,233.99,233.98,0.4826342]
[1732579525218,16.15111474,233.99,233.98,0.4826342]
[1732579525546,37.56278282,234.02,233.98,0.4826342]
[1732579525836,15.5107,234.07,233.98,0.4826342]
[1732579525837,34.14428282,234.04,233.98,0.4826342]
[1732579526044,0.64041474,234.03,233.98,0.4826342]
[1732579526350,34.14428282,234.0,233.98,0.4826342]
[1732579527131,37.56308282,234.0,233.98,0.4826342]
[1732579527439,0.64041474,234.05,233.98,0.4826342]
[1732579527440,34.14428282,234.04,233.98,0.4826342]
[1732579527649,15.5107,234.07,233.98,34.62691702]
[1732579527650,34.14428282,234.06,233.98,34.62691702]
[1732579527946,34.14428282,234.06,233.98,0.4826342]
[1732579527947,34.14428282,234.02,233.98,0.4826342]
[1732579528625,34.14428282,234.04,233.98,0.4826342]
[1732579528964,0.64041474,234.1,234.02,34.14428282]
[1732579529245,15.366,234.15,233.99,0.12549]
[1732579529246,34.14428282,234.14,234.06,34.14428282]
[1732579529433,6.1012,234.18,234.1,34.14428282]
[1732579529639,34.14428282,234.2,234.12,34.14428282]
[1732579529827,34.14428282,234.2,234.04,0.12549]
[1732579529828,34.14428282,234.16,234.06,34.14428282]
[1732579530151,34.14428282,234.12,234.04,34.26977282]
[1732579530326,21.05177513,234.11,234.03,21.05177513]
[1732579530725,21.05177513,234.13,234.04,0.12549]
[1732579530943,21.05177513,234.13,234.05,21.05177513]
[1732579531161,24.46867513,234.13,234.05,21.05177513]
[1732579531329,24.46867513,234.13,234.04,0.12549]
[1732579531528,21.05177513,234.13,234.05,21.05177513]
[1732579531939,24.46867513,234.13,234.05,21.05177513]
[1732579532325,21.05177513,234.11,234.03,21.05177513]
[1732579533029,24.46867513,234.13,234.05,21.05177513]
[1732579533253,21.05177513,234.11,234.03,21.05177513]
[1732579533427,24.46867513,234.13,234.05,21.05177513]
[1732579535042,21.05177513,234.13,234.05,21.05177513]
[1732579535347,21.05177513,234.11,234.03,0.12549]
[1732579535554,21.05177513,234.11,234.01,21.05177513]
[1732579535728,21.05177513,234.09,234.01,21.05177513]
[1732579535932,21.05177513,234.11,234.03,21.05177513]
[1732579536138,21.05177513,234.15,234.07,21.05177513]
[1732579536332,21.05177513,234.13,234.03,21.05177513]
[1732579536530,21.05177513,234.13,234.03,25.32467513]
[1732579536951,21.05177513,234.15,234.06,0.12549]
[1732579537127,21.05177513,234.19,234.12,21.05177513]
[1732579537331,21.05177513,234.21,234.12,21.05177513]
[1732579537531,0.64041474,234.23,234.08,21.05177513]
[1732579537532,21.05177513,234.17,234.08,21.05177513]
[1732579537734,21.05177513,234.15,234.06,21.17726513]
[1732579538338,11.9545,234.22,234.03,4.91353853]
[1732579538339,21.05177513,234.11,234.03,0.12549]
[1732579538661,0.12549,234.19,234.03,0.12549]
[1732579538662,21.05177513,234.13,234.04,25.32437513]
[1732579539258,21.05177513,234.11,234.03,0.12549]
[1732579539757,21.05177513,234.15,234.07,0.12549]
[1732579539942,21.05177513,234.19,234.1,21.05177513]
[1732579540145,21.05177513,234.19,234.12,21.05177513]
[1732579540461,21.05177513,234.21,234.13,0.12549]
[1732579540631,21.05177513,234.23,234.14,25.32267513]
[1732579540835,21.05177513,234.21,234.12,4.52218]
[1732579541261,21.05177513,234.23,234.14,0.12549]
[1732579541564,21.05177513,234.25,234.16,0.25098]
[1732579542249,21.05177513,234.29,234.21,0.12549]
[1732579542439,30.42528469,234.31,234.23,0.12549]
[1732579542629,30.42528469,234.31,234.22,21.05177513]
[1732579542630,9.37350956,234.31,234.27,0.12549]
[1732579542834,9.37350956,234.31,234.27,0.25098]
[1732579543056,9.37350956,234.31,234.29,0.12549]
[1732579543265,21.05177513,234.3,234.22,4.2693]
[1732579543465,21.05177513,234.28,234.22,0.12549]
[1732579543768,21.05177513,234.24,234.16,4.2705]
[1732579543940,21.05177513,234.26,234.17,21.05177513]
[1732579544667,21.05177513,234.26,234.12,16.766]
[1732579544668,21.05177513,234.22,234.12,4.2712]
[1732579544837,3.415,234.26,234.12,4.2712]
[1732579544838,21.05177513,234.24,234.15,21.05177513]
[1732579545037,21.05177513,234.24,234.16,0.64035402]
[1732579545241,21.05177513,234.24,234.15,21.05177513]
[1732579545566,0.64041474,234.3,234.18,0.12549]
[1732579545567,21.05177513,234.26,234.18,0.12549]
[1732579545734,21.05177513,234.26,234.17,21.05177513]
[1732579546152,21.05177513,234.26,234.18,0.25098]
[1732579546361,21.05177513,234.26,234.18,0.12549]
[1732579546562,21.05177513,234.28,234.2,0.12549]
[1732579546873,21.05177513,234.24,234.16,0.12549]
[1732579547361,21.05177513,234.18,234.07,21.05177513]
[1732579547564,21.05177513,234.2,234.11,21.05177513]
[1732579547955,21.05177513,234.18,234.09,21.05177513]
[1732579548146,21.05177513,234.18,234.1,0.12549]
[1732579548349,21.05177513,234.12,233.98,1.4826342]
[1732579548548,0.64041474,234.17,233.98,1.4826342]
[1732579548549,21.05177513,234.1,234.0,21.05177513]
[1732579548763,21.05177513,234.1,234.01,4.2733]
[1732579548963,21.05177513,234.1,233.99,4.2735]
[1732579548964,21.05177513,234.06,233.99,4.2735]
[1732579549278,21.05177513,234.06,233.98,1.4826342]
[1732579549475,21.05177513,234.1,234.01,21.05177513]
[1732579549767,21.05177513,234.12,234.03,21.05177513]
[1732579549935,3.4168,234.14,234.01,21.05177513]
[1732579549936,21.05177513,234.1,234.01,21.05177513]
[1732579550141,21.05177513,234.12,234.04,0.12549]
[1732579550342,21.05177513,234.12,234.03,21.05177513]
[1732579550343,34.2055905,234.12,234.03,34.2055905]
[1732579550556,34.2055905,234.12,234.04,4.2727]
[1732579550764,34.2055905,234.16,234.07,34.2055905]
[1732579550966,34.2055905,234.14,234.06,0.12549]
[1732579551164,34.2055905,234.12,234.05,0.12549]
[1732579552051,34.2055905,234.14,234.05,34.3310805]
[1732579552373,34.2055905,234.16,234.08,0.12549]
[1732579552870,34.2055905,234.18,234.1,0.12549]
[1732579553057,34.2055905,234.2,234.11,34.2055905]
[1732579553972,34.2055905,234.22,234.14,0.12549]
[1732579554182,34.2055905,234.24,234.15,34.2055905]
[1732579554349,34.2055905,234.26,234.17,34.2055905]
[1732579555158,34.2055905,234.22,234.13,34.2055905]
[1732579555378,34.2055905,234.22,234.13,34.3310805]
[1732579555583,34.2055905,234.2,234.12,4.2713]
[1732579555753,34.2055905,234.18,234.12,4.2713]
[1732579555950,34.2055905,234.2,234.12,0.12549]
[1732579556280,34.2055905,234.24,234.16,0.12549]
[1732579556480,34.2055905,234.22,234.13,34.2055905]
[1732579556781,34.2055905,234.24,234.17,34.2055905]
[1732579556970,34.2055905,234.24,234.15,34.2055905]
[1732579557151,34.2055905,234.2,234.13,34.2055905]
[1732579557352,34.2055905,234.18,234.09,0.12549]
[1732579557974,34.2055905,234.18,234.09,4.2718]
[1732579558149,34.2055905,234.16,234.09,4.2718]
[1732579558461,3.416,234.19,234.09,4.2718]
[1732579558462,34.2055905,234.18,234.09,4.2718]
[1732579558664,34.2055905,234.18,234.1,34.2055905]
[1732579559770,3.4159,234.2,234.12,34.2055905]
[1732579559771,34.2055905,234.2,234.12,34.2055905]
[1732579560083,34.2055905,234.22,234.14,34.2055905]
[1732579560279,34.2055905,234.26,234.18,34.2055905]
[1732579560581,34.2055905,234.26,234.14,0.25098]
[1732579560582,34.09906957,234.28,234.14,0.25098]
[1732579560787,34.09906957,234.28,234.19,34.2055905]
[1732579560968,34.2055905,234.24,234.15,34.2055905]
[1732579562166,34.2055905,234.24,234.16,4.2705]
[1732579562484,34.2055905,234.28,234.19,34.2055905]
[1732579563366,34.2055905,234.22,234.16,4.2705]
[1732579564393,34.2055905,234.24,234.16,4.2705]
[1732579564554,34.2055905,234.28,234.19,34.2055905]
[1732579564758,9.37350956,234.31,234.23,34.2055905]
[1732579565091,9.37350956,234.31,234.26,34.2055905]
[1732579565378,9.37350956,234.31,234.28,34.2055905]
[1732579565564,9.37350956,234.31,234.3,34.2055905]
[1732579565755,9.37350956,234.31,234.3,34.4565705]
[1732579566167,34.2055905,234.44,234.31,24.027864]
[1732579566380,34.2055905,234.42,234.32,34.2055905]
[1732579566589,34.2055905,234.44,234.36,34.2055905]
[1732579566756,34.2055905,234.48,234.4,34.2055905]
[1732579566962,34.2055905,234.52,234.42,34.2055905]
[1732579567181,34.2055905,234.54,234.46,34.2055905]
[1732579567883,34.2055905,234.52,234.45,0.12549]
[1732579568088,34.2055905,234.54,234.45,0.12549]
[1732579568384,34.2055905,234.54,234.46,4.2651]
[1732579568694,34.2055905,234.52,234.44,4.2654]
[1732579569588,34.2055905,234.54,234.45,0.12549]
[1732579569790,34.2055905,234.52,234.47,20.0]
[1732579569963,34.2055905,234.48,234.41,20.0]
[1732579570465,34.2055905,234.48,234.41,24.2658]
[1732579570791,34.2055905,234.42,234.32,34.2055905]
[1732579571089,34.2055905,234.37,234.28,34.2055905]
[1732579571295,34.2055905,234.35,234.26,38.4742905]
[1732579571585,34.2055905,234.33,234.24,38.4745905]
[1732579571900,34.2055905,234.31,234.24,4.269]
[1732579572878,34.2055905,234.27,234.2,34.2055905]
[1732579573259,34.2055905,234.27,234.18,38.4757905]
[1732579573456,34.2055905,234.31,234.22,34.2055905]
[1732579573981,34.2055905,234.31,234.18,15.58588797]
[1732579573982,34.2055905,234.29,234.21,0.12549]
[1732579574195,34.2055905,234.31,234.23,0.12549]
[1732579574382,34.2055905,234.37,234.3,34.2055905]
[1732579574581,34.2055905,234.37,234.28,34.2055905]
[1732579574895,0.64041474,234.42,234.25,0.64000437]
[1732579574896,34.2055905,234.41,234.35,20.0]
[1732579575387,0.64041474,234.47,234.4,34.2055905]
[1732579575581,34.2055905,234.49,234.4,34.2055905]
[1732579575892,34.2055905,234.47,234.41,20.0]
[1732579576097,34.2055905,234.47,234.4,34.2055905]
[1732579576463,34.2055905,234.53,234.45,54.2055905]
[1732579576892,34.2055905,234.51,234.46,20.0]
[1732579577506,34.2055905,234.49,234.44,20.0]
[1732579578101,34.2055905,234.49,234.41,34.2055905]
[1732579578102,34.2055905,234.53,234.46,20.0]
[1732579578275,34.2055905,234.51,234.48,20.0]
[1732579578479,34.2055905,234.49,234.41,34.2055905]
[1732579578721,34.2055905,234.49,234.44,20.0]
[1732579578876,34.2055905,234.47,234.44,20.0]
[1732579579074,34.2055905,234.47,234.39,38.4717905]
[1732579579080,34.2055905,234.49,234.42,20.0]
[1732579579381,34.2055905,234.51,234.44,20.0]
[1732579579776,34.2055905,234.49,234.46,20.0]
[1732579580491,34.2055905,234.47,234.37,17.070816]
[1732579580673,34.2055905,234.43,234.36,4.2668]
[1732579580867,34.2055905,234.43,234.35,34.2055905]
[1732579581089,34.2055905,234.49,234.4,34.2055905]
[1732579581395,34.2055905,234.49,234.42,34.2055905]
[1732579581785,34.2055905,234.49,234.45,20.0]
[1732579581986,34.2055905,234.51,234.45,20.0]
[1732579582294,34.2055905,234.49,234.43,20.0]
[1732579583001,34.2055905,234.49,234.44,4.2654]
[1732579583376,4.05131474,234.54,234.44,4.2654]
[1732579583377,34.2055905,234.51,234.44,4.2654]
[1732579583571,34.2055905,234.54,234.45,34.2055905]
[1732579583806,34.2055905,234.54,234.48,20.0]
[1732579584307,16.23232324,234.55,234.52,20.0]
[1732579584472,16.23232324,234.55,234.53,34.2055905]
[1732579584803,16.23232324,234.55,234.54,0.25098]
[1732579585178,16.23232324,234.55,234.54,24.027864]
[1732579585383,34.2055905,234.66,234.57,20.0]
[1732579585599,34.2055905,234.66,234.61,20.0]
[1732579585904,34.2055905,234.68,234.63,20.0]
[1732579586283,16.4203,234.71,234.54,0.25098]
[1732579586284,34.2055905,234.66,234.57,0.12549]
[1732579586486,34.2055905,234.64,234.59,20.0]
[1732579587078,34.2055905,234.64,234.54,34.2055905]
[1732579587279,34.2055905,234.62,234.57,20.0]
[1732579587881,34.2055905,234.6,234.55,20.0]
[1732579588607,34.2055905,234.62,234.57,20.0]
[1732579588987,23.776884,234.67,234.48,34.2055905]
[1732579588988,34.2055905,234.58,234.48,34.2055905]
[1732579589178,0.64041474,234.61,234.44,4.2654]
[1732579589179,34.2055905,234.54,234.46,34.2055905]
[1732579589387,34.2055905,234.52,234.44,38.4709905]
[1732579590003,34.2055905,234.56,234.48,34.2055905]
[1732579590207,34.2055905,234.6,234.52,34.2055905]
[1732579590408,34.2055905,234.58,234.5,34.2055905]
[1732579590590,34.2055905,234.6,234.52,34.2055905]
[1732579590792,34.2055905,234.6,234.5,34.2055905]
[1732579590998,34.2055905,234.6,234.51,0.12549]
[1732579591190,34.2055905,234.6,234.53,20.0]
[1732579592109,34.2055905,234.64,234.56,34.2055905]
[1732579592505,34.2055905,234.64,234.57,20.0]
[1732579592811,34.2055905,234.64,234.6,4.2625]
[1732579593749,0.64041474,234.7,234.57,20.0]
[1732579593750,34.2055905,234.62,234.57,20.0]
[1732579593916,34.2055905,234.64,234.57,20.0]
[1732579594083,34.2055905,234.68,234.61,20.0]
[1732579594289,34.2055905,234.72,234.65,20.0]
[1732579594587,15.8531,234.79,234.71,20.0]
[1732579594588,34.84600524,234.78,234.71,20.0]
[1732579594804,34.6882247,234.8,234.75,20.0]
[1732579595312,34.6882247,234.8,234.73,20.0]
[1732579595491,34.6882247,234.8,234.72,34.2055905]
[1732579595692,0.4826342,234.8,234.77,20.0]
[1732579595885,0.4826342,234.8,234.71,14.9118]
[1732579595886,0.4826342,234.8,234.79,20.0]
[1732579597004,0.4826342,234.8,234.79,24.2591]
[1732579597520,0.4826342,234.8,234.79,24.51008]
[1732579598126,0.4826342,234.8,234.79,48.92555989]
[1732579598808,34.2055905,234.95,234.85,0.12549]
[1732579598995,34.2055905,234.95,234.87,54.2055905]
[1732579599514,34.2055905,234.93,234.88,20.0]
[1732579599687,34.2055905,234.91,234.88,20.0]
[1732579600121,34.2055905,234.91,234.86,20.0]
[1732579600291,34.2055905,234.95,234.88,20.0]
[1732579600998,34.2055905,234.97,234.89,38.4628905]
[1732579601205,34.2055905,234.97,234.92,20.0]
[1732579601995,34.2055905,234.99,234.92,20.0]
[1732579602318,0.4826342,235.03,235.0,20.0]
[1732579602493,0.4826342,235.03,235.01,34.2055905]
[1732579603023,0.4826342,235.03,235.02,28.282764]
[1732579603318,6.92051362,235.08,235.07,54.027864]
[1732579603500,34.2055905,235.22,235.1,20.0]
[1732579603819,34.2055905,235.18,235.1,54.2055905]
[1732579604200,34.2055905,235.2,235.12,34.2055905]
[1732579605123,34.2055905,235.2,235.13,4.2529]
[1732579605289,34.2055905,235.22,235.13,4.2529]
[1732579606419,34.2055905,235.24,235.13,21.521773]
[1732579606607,34.6882247,235.26,235.13,21.521773]
[1732579606805,34.6882247,235.26,235.13,45.298657]
[1732579607003,34.2055905,235.24,235.13,21.521773]
[1732579607525,34.2055905,235.24,235.13,21.270793]
[1732579608020,34.2055905,235.22,235.13,21.270793]
[1732579608621,34.2055905,235.2,235.13,21.270793]
[1732579608806,34.2055905,235.18,235.11,4.2532]
[1732579610127,34.2055905,235.18,235.13,20.0]
[1732579610328,34.2055905,235.18,235.06,0.63779814]
[1732579610329,34.2055905,235.16,235.06,34.2055905]
[1732579610496,49.2055905,235.14,235.06,38.4597905]
[1732579610700,15.0,235.14,235.08,34.2055905]
[1732579611304,49.2055905,235.14,235.06,38.4597905]
[1732579611825,49.2055905,235.14,235.09,20.0]
[1732579612222,15.0,235.14,235.1,34.2055905]
[1732579612411,15.0,235.14,235.12,34.2055905]
[1732579612619,15.0,235.14,235.13,4.2529]
[1732579613219,15.0,235.14,235.12,34.2055905]
[1732579613420,15.0,235.14,235.13,20.0]
[1732579614213,15.0,235.14,235.11,20.0]
[1732579614521,15.0,235.14,235.1,4.2534]
[1732579615113,15.0,235.14,235.08,38.4592905]
[1732579615330,15.0,235.14,235.1,34.2055905]
[1732579615923,15.0,235.14,235.13,20.0]
[1732579616443,15.0,235.14,235.11,20.0]
[1732579616815,15.0,235.14,235.11,24.2532]
[1732579617019,15.0,235.14,235.13,20.0]
[1732579617217,15.0,235.14,235.13,0.12549]
[1732579617539,15.0,235.14,235.12,34.2055905]
[1732579617723,15.0,235.14,235.13,23.902374]
[1732579618311,15.0,235.14,235.13,4.37839]
[1732579618543,15.0,235.14,235.13,28.280764]
[1732579619238,15.0,235.14,235.13,28.155274]
[1732579619932,15.0,235.14,235.13,28.280764]
[1732579620712,15.0,235.14,235.13,4.37839]
[1732579621636,15.0,235.14,235.13,28.155274]
[1732579622010,15.0,235.14,235.12,34.2055905]
[1732579622215,15.0,235.14,235.13,23.776884]
[1732579622527,15.0,235.14,235.12,38.4585905]
[1732579622923,15.0,235.14,235.13,24.027864]
[1732579623243,15.0,235.14,235.13,23.902374]
[1732579623542,15.0,235.14,235.13,24.027864]
[1732579624123,0.4826342,235.26,235.21,0.12549]
[1732579624426,0.4826342,235.26,235.25,62.3586645]
[1732579625324,0.4826342,235.26,235.25,62.4841545]
[1732579625827,0.4826342,235.26,235.25,62.3586645]
[1732579626337,0.4826342,235.26,235.25,62.4841545]
[1732579626545,0.4826342,235.26,235.25,63.12146582]
[1732579628023,0.4826342,235.26,235.25,62.3586645]
[1732579628228,0.4826342,235.26,235.25,62.4841545]
[1732579628427,0.4826342,235.26,235.25,63.12144733]
[1732579628750,0.4826342,235.26,235.25,62.3586645]
[1732579629035,0.4826342,235.26,235.25,62.4841545]
[1732579629245,0.4826342,235.26,235.25,63.12146982]
[1732579629617,0.4826342,235.26,235.25,62.4841545]
[1732579630246,0.4826342,235.26,235.25,63.12150772]
[1732579631292,34.84600524,235.43,235.25,68.9533742]
[1732579631293,0.64041474,235.43,235.25,68.9533742]
[1732579631432,0.64041474,235.44,235.37,34.2055905]
[1732579631743,0.64041474,235.44,235.29,24.027864]
[1732579631744,0.64041474,235.44,235.38,20.0]
[1732579631939,37.6033905,235.45,235.38,20.0]
[1732579632341,3.3978,235.45,235.38,20.0]
[1732579632542,20.81318605,235.46,235.4,20.0]
[1732579632728,3.3975,235.47,235.4,20.0]
[1732579633547,37.62035592,235.48,235.4,20.0]
[1732579633724,36.97994118,235.48,235.42,20.0]
[1732579633923,36.97994118,235.48,235.41,20.81318605]
[1732579634121,16.16675513,235.48,235.43,20.81318605]
[1732579634427,16.16675513,235.48,235.4,20.0]
[1732579634620,16.16675513,235.48,235.33,6.67833922]
[1732579634621,36.97994118,235.48,235.42,20.0]
[1732579634816,36.97994118,235.48,235.43,20.81318605]
[1732579634817,16.16675513,235.48,235.43,20.81318605]
[1732579635022,16.16675513,235.48,235.45,20.81318605]
[1732579635422,16.16675513,235.48,235.47,40.81318605]
[1732579637058,16.16675513,235.48,235.41,25.06098605]
[1732579637223,20.81318605,235.46,235.37,20.81318605]
[1732579637626,20.81318605,235.46,235.34,4.2491]
[1732579637627,16.16675513,235.48,235.41,20.81318605]
[1732579637847,16.16675513,235.48,235.45,20.81318605]
[1732579638061,16.16675513,235.48,235.47,20.81318605]
[1732579639652,16.16675513,235.48,235.45,20.81318605]
[1732579639850,16.16675513,235.48,235.43,20.81318605]
[1732579640158,16.16675513,235.48,235.47,20.0]
[1732579640825,16.16675513,235.48,235.43,20.81318605]
[1732579641241,16.16675513,235.48,235.47,20.0]
[1732579641953,16.16675513,235.48,235.47,40.81318605]
[1732579642731,16.16675513,235.48,235.47,45.05998605]
[1732579642952,16.16675513,235.48,235.47,45.18547605]
[1732579643157,0.4826342,235.5,235.47,45.18547605]
[1732579643330,0.4826342,235.5,235.49,20.81318605]
[1732579643660,0.4826342,235.5,235.49,20.93867605]
[1732579644550,0.4826342,235.5,235.49,45.47776101]
[1732579644731,0.4826342,235.5,235.49,49.72416101]
[1732579645160,0.64041474,235.71,235.58,0.12549]
[1732579645371,4.03431474,235.72,235.65,20.81318605]
[1732579645664,43.93812025,235.73,235.65,20.81318605]
[1732579646765,23.1249342,235.73,235.65,25.05668605]
[1732579646963,43.93812025,235.73,235.65,25.05668605]
[1732579647178,43.93812025,235.73,235.59,10.6116]
[1732579647179,20.81318605,235.67,235.59,20.81318605]
[1732579647461,20.81318605,235.67,235.62,20.0]
[1732579647657,0.64041474,235.72,235.62,20.0]
[1732579647658,0.64041474,235.72,235.64,20.81318605]
[1732579647843,20.81318605,235.69,235.63,20.0]
[1732579648048,20.81318605,235.67,235.63,20.0]
[1732579648555,0.64041474,235.72,235.63,20.0]